[Event "4th ESNA Championship 2022"]
[Site "Vaduz"]
[Date "2022.09.28"]
[Round "6.3"]
[White "Berend, Fred"]
[Black "Michaelides, Konstantinos"]
[Result "1-0"]
[ECO "D02"]
[WhiteElo "2300"]
[BlackElo "2304"]
[Annotator "TA"]
[PlyCount "137"]
[EventDate "2022.09.25"]
[EventType "tourn"]
[EventCountry "LIE"]
[SourceTitle "playchess.com"]
[Source "ChessBase"]
[SourceQuality "1"]
[TimeControl "40/5400+30:1800+30"]

{[%evp 9,137,5,0,0,0,6,4,0,20,3,13,-2,-8,-1,-1,-7,-7,-2,6,-7,0,0,0,-7,-6,-16,20,25,31,23,26,20,61,48,52,51,50,24,72,74,68,50,50,22,29,19,20,25,19,22,22,22,21,12,117,117,106,29,31,36,167,164,153,154,169,173,173,173,163,169,247,231,327,327,333,295,257,215,206,163,163,156,141,141,236,229,297,212,306,291,281,273,306,273,432,340,312,264,471,466,373,270,603,537,675,660,609,591,2148,1132,5214,5222,5214,5193,3795,3864,2435,2114,830,1627,29977,29974,29974,29975,29975,29976,29976,29976,29975,29976]} 1. d4 {[%emt 0:00:02]} d5 {[%emt 0:00:27]} 2. Nf3 {[%emt 0:00:39]} e6 {[%emt 0:00:33]} 3. Bf4 {[%emt 0:01:13]} Nf6 {[%emt 0:00:23]} 4. e3 {[%emt 0:00:33]} c5 {[%emt 0:00:47]} 5. c3 {[%emt 0:02:21]} Bd6 {[%emt 0:00:48]} 6. Bd3 {[%emt 0:05:23] D02: 1 d4 d5 2 Nf3 sidelines, including 2...Nf6 3 g3 and 2...Nf6 3 Bf4.} O-O {[%emt 0:03:09]} 7. dxc5 {[%emt 0:06:31]} Bxc5 {[%emt 0:04:23]} 8. Nbd2 {[%emt 0:01:48] The position is equal.} Nbd7 {[%emt 0:08:33]} 9. O-O {[%emt 0:04:48] [#]} Be7 $146 {[%emt 0:06:01]} ({Predecessor:} 9... Re8 10. Ne5 Nxe5 11. Bxe5 Bd6 12. Bxd6 Qxd6 13. c4 Bd7 14. cxd5 Qxd5 15. Be2 Bb5 16. Bxb5 Qxb5 17. Qb3 Qxb3 {½-½ (17) Reinhardt,B (2188)-Krieger,M (2050) Davos 2021}) 10. Ne5 {[%emt 0:10:58]} Nxe5 {[%emt 0:03:12]} 11. Bxe5 {[%emt 0:00:02]} Nd7 {[%emt 0:01:06]} 12. Bg3 {[%emt 0:00:15]} (12. Qh5 $2 g6 13. Qe2 Nxe5 $19) 12... Nc5 {[%emt 0:02:12]} 13. Bc2 {[%emt 0:02:09]} b6 {[%emt 0:02:45]} 14. Qb1 {[%emt 0:04:34]} (14. b4 $5 {[%cal Rb4c5]} Nd7 15. e4 $11 (15. Qh5 g6 $15)) 14... h6 {[%emt 0:03:21]} 15. Rd1 {[%emt 0:00:44]} Bb7 {[%emt 0:06:28]} 16. e4 {[%emt 0:07:55]} Qc8 {[%emt 0:04:20]} 17. exd5 {[%emt 0:06:38]} exd5 {[%emt 0:10:12]} 18. Bh7+ {[%emt 0:00:58]} Kh8 {[%emt 0:00:01] ...f5 is the strong threat.} 19. Bf5 {[%emt 0:00:21]} Qc6 {[%emt 0:13:35][%cal Od5d4]} 20. Nf3 {[%emt 0:02:30][%cal Bd2f3,Bf3d4,Bd4f5][%mdl 32]} Bc8 {[%emt 0:05:37]} 21. Be5 {[%emt 0:05:34]} Ne4 {[%emt 0:04:13]} 22. Nd4 {[%emt 0:02:10]} Qb7 {[%emt 0:02:21]} 23. Qd3 {[%emt 0:05:47]} Bf6 {[%emt 0:02:44]} (23... Bc5 $11) 24. Bxf6 $16 {[%emt 0:03:36]} Nxf6 {[%emt 0:00:10]} 25. Qh3 {[%emt 0:00:50]} Re8 {[%emt 0:05:44]} 26. Rd3 {[%emt 0:04:52]} Bxf5 {[%emt 0:04:26]} 27. Nxf5 {[%emt 0:02:18] And now Rg3 would win.} Qd7 {[%emt 0:01:06]} 28. Qf3 {[%emt 0:00:14] Against Re2} Re5 {[%emt 0:01:31]} 29. Ne3 {[%emt 0:01:27]} Qb5 {[%emt 0:01:44][%csl LRb2,LRd3] Prevents c4.} 30. Rad1 {[%emt 0:02:17]} Rae8 {[%emt 0:01:43]} 31. b3 {[%emt 0:01:08]} a5 {[%emt 0:01:01]} (31... Qa6 $11) 32. h3 {[%emt 0:01:00]} Qc5 {[%emt 0:01:20]} 33. Kh2 {[%emt 0:00:52]} ({White should play} 33. Nxd5 $16 Ne4 34. b4 (34. Qxf7 Rf8 $11) 34... axb4 35. cxb4) 33... Qc7 {[%emt 0:00:20]} 34. g3 {[%emt 0:00:34][%cal Re3d5]} Rc8 {[%emt 0:00:39] This move loses the game for Black.} ({Better is} 34... Qc8 $14) 35. Nxd5 $18 {[%emt 0:01:46]} Nxd5 {[%emt 0:00:14]} 36. Rxd5 {[%emt 0:00:02]} Rxd5 {[%emt 0:00:27]} 37. Rxd5 {[%emt 0:00:07][%mdl 4096] Endgame KQR-KQR} Kg8 {[%emt 0:00:52]} 38. c4 {[%emt 0:00:14]} Re8 {[%emt 0:00:26]} 39. Qd3 {[%emt 0:01:23]} g6 {[%emt 0:00:31]} (39... Kf8 {is a better defense.} 40. a4 Re1) 40. Qd4 {[%emt 0:00:57]} h5 {[%emt 0:00:34]} (40... a4 $142 41. bxa4 Qc6) 41. a4 {[%emt 0:36:09]} Rb8 {[%emt 0:07:40]} 42. Kg1 {[%emt 0:00:00]} Re8 {[%emt 0:04:20]} 43. Kf1 {[%emt 0:00:00]} Qc6 {[%emt 0:01:17]} 44. h4 $40 {[%emt 0:00:00][%mdl 128] White wants a kill.} Kh7 {[%emt 0:06:00]} 45. Qf4 {[%emt 0:00:00]} Kg7 {[%emt 0:01:26]} (45... Qe6 $2 46. Kg2) 46. Qf3 {[%emt 0:00:00]} Qe6 {[%emt 0:01:20]} (46... Re6 $16 47. Qc3+ Kh7) 47. Kg2 {[%emt 0:00:00] Active counter play!} Qe1 {[%emt 0:01:50]} 48. Rd1 {[%emt 0:10:51]} Qe5 {[%emt 0:02:21]} (48... Qb4 $142 49. Rd7 Re7) 49. Rd7 {[%emt 0:00:00]} Re7 {[%emt 0:02:35]} 50. Qd5 {[%emt 0:00:00]} Qxd5+ {[%emt 0:02:30]} 51. Rxd5 {[%emt 0:00:00] KR-KR} Rc7 {[%emt 0:01:28]} (51... Re2 $142 52. Rd6 Rc2 53. Rxb6 Rc3) 52. Kf3 {[%emt 0:00:00]} Rc6 {[%emt 0:00:23]} 53. Ke4 {[%emt 0:00:00] Strongly threatening Rb5.} Rf6 $2 {[%emt 0:01:41]} (53... Kf6 {was called for.} 54. f3 Ke6) 54. f4 {[%emt 0:00:00]} Re6+ {[%emt 0:01:24]} 55. Kd4 {[%emt 0:00:00] aiming for c5.} Re1 $2 {[%emt 0:00:27]} (55... Kf6 56. c5 bxc5+ 57. Kxc5 (57. Rxc5 Ra6 $18) 57... Re3) 56. Rb5 {[%emt 0:00:00]} Rg1 {[%emt 0:00:48]} 57. Rxb6 {[%emt 0:00:00]} Rxg3 {[%emt 0:00:07]} 58. c5 {[%emt 0:00:00][%cal Bc4c5,Bc5c6,Bc6c7][%mdl 32] Hoping for c6.} Rg4 {[%emt 0:00:33]} 59. Ke5 {[%emt 0:00:00]} Rxh4 {[%emt 0:00:41]} 60. c6 {[%emt 0:00:00] White threatens c7 and mate.} Rh1 {[%emt 0:00:23]} 61. c7 {[%emt 0:00:00]} Rc1 {[%emt 0:00:16] [#]} 62. Kd6 $1 {[%emt 0:00:00]} h4 {[%emt 0:01:05]} 63. Rc6 {[%emt 0:00:00]} Rd1+ {[%emt 0:00:30] [#]} 64. Ke7 $1 {[%emt 0:00:00] Rc2 would kill now.} h3 {[%emt 0:00:47]} 65. Rc2 {[%emt 0:00:00] White mates.} Re1+ {[%emt 0:00:36]} 66. Kd7 {[%emt 0:00:00]} Rd1+ {[%emt 0:00:29]} 67. Kc6 {[%emt 0:00:00]} h2 {[%emt 0:00:31]} 68. Rxh2 {[%emt 0:00:00]} Rc1+ {[%emt 0:00:24]} 69. Kb7 {[%emt 0:00:00] Weighted Error Value: White=0.14 (very precise) /Black=0.34} 1-0

[Event "4th ESNA Championship 2022"]
[Site "Vaduz"]
[Date "2022.09.28"]
[Round "6.4"]
[White "Henderson de La Fuente, Lance"]
[Black "Kirby, Peter J."]
[Result "1-0"]
[ECO "B51"]
[WhiteElo "2504"]
[BlackElo "2011"]
[Annotator "TA"]
[PlyCount "55"]
[EventDate "2022.09.25"]
[EventType "tourn"]
[EventCountry "LIE"]
[SourceTitle "playchess.com"]
[Source "ChessBase"]
[SourceQuality "1"]
[TimeControl "40/5400+30:1800+30"]

{[%evp 11,55,25,54,25,12,13,27,27,54,37,52,43,38,54,52,0,4,4,19,0,33,19,27,16,41,33,33,37,47,10,76,62,88,90,100,112,103,84,126,110,192,220,385,361,319,291]} 1. e4 {[%emt 0:00:14]} c5 {[%emt 0:00:04]} 2. Nf3 {[%emt 0:00:07]} Nc6 {[%emt 0:00:05]} 3. Bb5 {[%emt 0:00:35]} d6 {[%emt 0:00:17]} 4. O-O {[%emt 0:01:08]} Bd7 {[%emt 0:00:15]} 5. Re1 {[%emt 0:00:38]} e6 {[%emt 0:02:12]} 6. c3 {[%emt 0:01:48]} a6 {[%emt 0:02:00]} 7. Bxc6 {[%emt 0:06:59] B51: Sicilian: Moscow Variation (3 Bb5+) without 3...Bd7.} Bxc6 {[%emt 0:05:23]} 8. d4 {[%emt 0:00:13]} d5 {[%emt 0:01:53]} 9. Ne5 {[%emt 0:02:47] White has an edge.} Nf6 {[%emt 0:08:33] Inhibits Qh5.} 10. Nxc6 {[%emt 0:06:43]} bxc6 {[%emt 0:00:33] [#]} 11. Qa4 $146 {[%emt 0:00:18]} ({Predecessor:} 11. e5 Nd7 12. Qg4 Qb6 13. Nd2 cxd4 14. cxd4 c5 15. Nf3 g6 16. Be3 cxd4 17. Bxd4 Bc5 18. Bxc5 Nxc5 19. Ng5 h6 20. Qh4 Qd8 21. Qd4 Nd7 22. Nf3 O-O {½-½ (22) Doerfler,G (2021)-Coduro,O (1976) Germany 2005}) 11... Qd7 {[%emt 0:04:53]} 12. e5 {[%emt 0:02:27]} Ng8 {[%emt 0:00:33]} 13. dxc5 {[%emt 0:09:04]} (13. Be3 $14) 13... Bxc5 $11 {[%emt 0:00:24]} 14. Qg4 {[%emt 0:00:20]} g6 {[%emt 0:04:14]} 15. Qf3 {[%emt 0:06:32]} Bf8 {[%emt 0:04:55]} 16. Nd2 {[%emt 0:05:28]} Bg7 {[%emt 0:02:07]} 17. Nb3 {[%emt 0:02:02]} Ne7 {[%emt 0:02:31]} 18. Bg5 {[%emt 0:00:29]} Qc7 {[%emt 0:04:45]} 19. Bf6 {[%emt 0:06:53]} Bxf6 {[%emt 0:01:22]} 20. Qxf6 {[%emt 0:00:30]} (20. exf6 {with more complications.} Nf5 21. Nc5 O-O 22. g4) 20... Rf8 {[%emt 0:03:28]} (20... O-O $11 {keeps the balance.}) 21. Rac1 {[%emt 0:03:05]} c5 {[%emt 0:03:56]} 22. c4 {[%emt 0:01:43]} d4 {[%emt 0:00:42]} 23. Nd2 {[%emt 0:00:53][%cal Bb3d2,Bd2e4,Be4c5][%mdl 32] White is much more active. The black rooks are badly placed.} h5 {[%emt 0:01:17]} 24. h3 {[%emt 0:01:57]} Nc6 {[%emt 0:04:42]} 25. Ne4 {[%emt 0:03:11]} Qxe5 {[%emt 0:03:27] [#]} (25... Qe7 $16 {was worth a try.}) 26. Qh4 $1 $18 {[%emt 0:00:13] Black must now prevent Nf6+.} ({Stronger than} 26. Qxe5 Nxe5 27. Nxc5 Nc6 $11) 26... f6 $2 {[%emt 0:02:51]} (26... g5 27. Nxg5 Qf5) 27. f4 {[%emt 0:00:39][%mdl 64] Deflection} Qc7 {[%emt 0:02:07]} 28. Nxc5 {[%emt 0:03:46] Weighted Error Value: White=0.08 (flawless) /Black=0.29 (precise)} 1-0

[Event "4th ESNA Championship 2022"]
[Site "Vaduz"]
[Date "2022.09.28"]
[Round "6.5"]
[White "Carpenter, Paul A"]
[Black "Efimov, Igor"]
[Result "0-1"]
[ECO "B40"]
[WhiteElo "1986"]
[BlackElo "2360"]
[Annotator "TA"]
[PlyCount "68"]
[EventDate "2022.09.25"]
[EventType "tourn"]
[EventCountry "LIE"]
[SourceTitle "playchess.com"]
[Source "ChessBase"]
[SourceQuality "1"]
[TimeControl "40/5400+30:1800+30"]

{[%evp 9,68,-31,-16,-31,-19,-32,-18,-34,-20,-71,-28,-30,-29,-139,-125,-131,-129,-166,-163,-186,-186,-197,-205,-206,-194,-208,-148,-159,-154,-144,-141,-462,-201,-210,-39,-72,0,0,0,0,0,0,29990,150,124,130,152,0,0,-9,-23,-704,-549,-840,-987,-966,-841,-29990,-29991,-29991,-29992]} 1. e4 {[%emt 0:00:10]} c5 {[%emt 0:00:52]} 2. Nf3 {[%emt 0:00:57]} e6 {[%emt 0:00:22]} 3. d3 {[%emt 0:01:42]} Nc6 {[%emt 0:00:39]} 4. c3 {[%emt 0:00:22]} Nf6 {[%emt 0:00:49]} 5. Bg5 {[%emt 0:06:02]} h6 {[%emt 0:01:12]} 6. Bh4 {[%emt 0:01:07] B40: Sicilian: 2...e6, Unusual lines.} d6 {[%emt 0:02:01] [#]} 7. Na3 $146 {[%emt 0:02:22]} ({Predecessor:} 7. Be2 Be7 8. Nbd2 g5 9. Bg3 g4 10. Ng1 h5 11. h3 Rg8 12. hxg4 hxg4 13. Qc2 {0-1 (46) Kevorkov,A (2277)-Luch,M (2429) Germany 2012}) 7... Be7 {[%emt 0:00:17]} 8. Nc4 {[%emt 0:03:03] The position is equal.} O-O {[%emt 0:07:42]} 9. h3 {[%emt 0:02:54]} (9. Be2 $11) 9... b5 {[%emt 0:14:15]} 10. Ne3 {[%emt 0:05:17]} b4 {[%emt 0:11:23]} 11. g4 {[%emt 0:06:02]} (11. Be2 $11 {keeps the balance.}) 11... bxc3 {[%emt 0:10:32]} 12. bxc3 {[%emt 0:00:26]} d5 $1 {[%emt 0:03:47]} 13. Qc2 {[%emt 0:25:48]} Qa5 {[%emt 0:09:09]} 14. Rc1 {[%emt 0:14:31]} Nd4 {[%emt 0:12:40]} 15. Nxd4 {[%emt 0:01:12]} cxd4 {[%emt 0:00:03]} 16. e5 {[%emt 0:00:08]} Ba3 {[%emt 0:03:12]} (16... dxe3 17. exf6 gxf6 18. Bg2 $17) 17. exf6 {[%emt 0:03:05]} Bxc1 {[%emt 0:01:59]} ({Stronger than} 17... dxe3 18. Rb1 $17) 18. fxg7 {[%emt 0:02:03]} Kxg7 {[%emt 0:00:01]} 19. Qxc1 {[%emt 0:02:41]} dxe3 {[%emt 0:00:02]} 20. d4 $2 {[%emt 0:06:50][%mdl 8192]} (20. fxe3 $17 {is tougher.} Qxa2 21. Bg3) 20... exf2+ {[%emt 0:01:17]} (20... Rb8 $142 21. Bd3 Ba6 22. Bxa6 Qxa6 23. fxe3 Rfc8) 21. Kxf2 $19 {[%emt 0:02:56][%cal Be1f2,Bf2g1,Bg1h1][%mdl 32]} Qxa2+ $2 {[%emt 0:01:02]} (21... Ba6 $19 22. Be7 Rfc8 23. Bxa6 Qxa6) 22. Kg1 $15 {[%emt 0:00:07]} f6 {[%emt 0:00:22]} ({Black should play} 22... Ba6 $17 23. Rh2 Qa4) 23. Rh2 $11 {[%emt 0:00:45]} Qa5 {[%emt 0:00:15] Hoping for ...Ba6.} 24. g5 $1 {[%emt 0:03:01]} fxg5 {[%emt 0:00:20]} 25. Bxg5 {[%emt 0:00:22]} Kh8 $2 {[%emt 0:02:38][%mdl 8192]} (25... hxg5 $2 26. Qxg5+ Kf7 27. Rf2+ Ke8 28. Qg6+ Kd7 29. Rxf8 Qxc3 30. Qe8+ (30. Kh1 Kc7 $18) 30... Kd6 31. Qd8+ Bd7 32. Qxa8 $18) (25... Ba6 $11 26. Bxh6+ Kh7 27. Bxf8 Rxf8) 26. Bxh6 $2 {[%emt 0:02:56]} (26. Be7 {mates} Kg7 27. Rg2+ Kf7 28. Bxf8 Ke8 29. Qf4 Kd8 30. Be7+ $1 {[%mdl 512]} Ke8 31. Rg8+ Kxe7 32. Rg7+ Ke8 33. Qf7+ Kd8 34. Rg8#) 26... Rg8+ $16 {[%emt 0:00:10] [#]} 27. Kh1 $1 {[%emt 0:00:27][%mdl 1024] White has strong compensation.} Ba6 {[%emt 0:02:00] And now ...Bxf1 would win.} 28. Bf4 $2 {[%emt 0:01:10] This bishop pair is nice.} (28. Rf2 $16 {White threatens Rf7 and mate.} e5 29. Bg5 Bxf1 30. Bf6+ Kh7 31. Bxe5) 28... Raf8 $11 {[%emt 0:01:41]} 29. Be5+ {[%emt 0:00:51]} Kh7 {[%emt 0:00:01][%cal Bh8h7,Bh7g8,Bg8f7,Bf7e8][%mdl 32]} 30. Bg2 {[%emt 0:04:17][%mdl 8192]} (30. Qb1+ $11 Rg6 31. c4) 30... Bd3 $19 {[%emt 0:00:26] White must now prevent ...Qa6.} 31. Qe1 {[%emt 0:00:24]} Rg6 {[%emt 0:03:13]} 32. Qh4+ {[%emt 0:00:46]} Kg8 {[%emt 0:00:07] ( -> ...Qa1+)} 33. Qh8+ {[%emt 0:00:37]} Kf7 {[%emt 0:00:07]} 34. Qh7+ {[%emt 0:00:37]} Ke8 {[%emt 0:00:02] Weighted Error Value: White=0.89/Black=0.50} 0-1

[Event "4th ESNA Championship 2022"]
[Site "Vaduz"]
[Date "2022.09.29"]
[Round "7.1"]
[White "Efimov, Igor"]
[Black "Mizzi, Jack"]
[Result "1-0"]
[ECO "B12"]
[WhiteElo "2360"]
[BlackElo "1863"]
[Annotator "TA"]
[PlyCount "57"]
[EventDate "2022.09.25"]
[EventType "tourn"]
[EventCountry "LIE"]
[SourceTitle "playchess.com"]
[Source "ChessBase"]
[SourceQuality "1"]
[TimeControl "40/5400+30:1800+30"]

{[%evp 9,57,10,39,24,62,68,61,47,49,-10,56,51,44,51,47,0,0,0,0,0,-15,-26,13,0,19,21,11,8,16,8,25,0,16,0,0,0,123,123,120,122,230,248,851,848,1096,1083,29979,29980,29990,29990]} 1. e4 {[%emt 0:00:05]} c6 {[%emt 0:00:08]} 2. d4 {[%emt 0:00:33]} d5 {[%emt 0:00:10]} 3. e5 {[%emt 0:00:05]} c5 {[%emt 0:00:19]} 4. dxc5 {[%emt 0:00:51]} e6 {[%emt 0:00:33]} 5. Be3 {[%emt 0:00:22]} Qc7 {[%emt 0:03:43]} 6. Nc3 {[%emt 0:06:26] [#] Strongly threatening Nb5. B12: Caro-Kann: Advance Variation.} ({Don't play} 6. Bb5+ Bd7 7. Nc3 Bxb5 8. Nxb5 Qa5+ 9. Nc3 Bxc5 $11) 6... Bd7 {[%emt 0:02:26]} 7. Nb5 {[%emt 0:02:12] White is more active.} Bxb5 {[%emt 0:00:37]} (7... Qxe5 $2 8. Nf3 Qh5 9. Nc7+ Kd8 10. Nxa8 $18) 8. Bxb5+ {[%emt 0:00:07] White is slightly better.} Nc6 {[%emt 0:00:38] [#] aiming for ...Qa5+.} 9. Qe2 $146 {[%emt 0:07:14]} (9. Ne2 $14) ({Predecessor:} 9. b4 a5 10. a3 Qxe5 11. Nf3 Qc7 12. Ba4 axb4 13. axb4 Qc8 14. O-O Nf6 15. Bxc6+ bxc6 16. Rxa8 Qxa8 {1-0 (24) Ponkratov,P (2630)-Piorun,K (2634) St Petersburg 2018}) 9... Nge7 {[%emt 0:05:43]} ({Black should play} 9... a6 $11 10. Bxc6+ Qxc6) 10. Nf3 $14 {[%emt 0:15:09]} a6 {[%emt 0:12:46] And now ...Qa5+ would win.} 11. Bxc6+ {[%emt 0:11:39]} Nxc6 {[%emt 0:00:25]} 12. O-O-O {[%emt 0:01:46]} (12. O-O $14) 12... Qa5 $11 {[%emt 0:06:01]} 13. Kb1 {[%emt 0:05:29]} Bxc5 {[%emt 0:01:28]} 14. Bxc5 {[%emt 0:00:28]} (14. c3 {seems wilder.} Be7 15. h4 Qa4 16. Nd4) 14... Qxc5 {[%emt 0:00:09]} 15. h4 {[%emt 0:00:16]} O-O-O {[%emt 0:02:09]} 16. h5 {[%emt 0:02:36]} h6 {[%emt 0:02:42]} 17. Rh4 {[%emt 0:04:20]} d4 {[%emt 0:09:27]} 18. Rf4 {[%emt 0:00:52]} Rhf8 {[%emt 0:01:39]} 19. Qe4 {[%emt 0:06:09]} Kb8 {[%emt 0:04:27]} 20. a3 {[%emt 0:07:26]} (20. Rg4 $5 {[%cal Rg4g7]}) 20... Rd5 {[%emt 0:08:37]} 21. g4 {[%emt 0:04:45]} a5 {[%emt 0:07:33]} 22. Nxd4 {[%emt 0:07:13]} Nxd4 {[%emt 0:01:16]} (22... Nxe5 $11 {keeps the balance.} 23. Qe2 Qc4 24. Qxc4 Nxc4) 23. Rxd4 $16 {[%emt 0:00:09]} Rxe5 {[%emt 0:00:16] [#]} 24. Qd3 {[%emt 0:00:08]} Re1+ {[%emt 0:08:24]} (24... f6 $16 {keeps fighting.}) 25. Ka2 $18 {[%emt 0:00:14]} Rc1 $2 {[%emt 0:02:12]} (25... Re5 26. b4 axb4) 26. Rc4 {[%emt 0:04:08]} Qb6 {[%emt 0:00:55]} 27. Rfd4 {[%emt 0:00:14]} e5 {[%emt 0:06:18]} 28. Rd6 {[%emt 0:01:30]} e4 {[%emt 0:00:50]} 29. Qd5 {[%emt 0:00:25] Weighted Error Value: White=0.12 (very precise) /Black=0.58} ({Less strong is} 29. Rxb6 exd3 30. cxd3 Rxc4 31. dxc4 Rd8 $16) 1-0

[Event "4th ESNA Championship 2022"]
[Site "Vaduz"]
[Date "2022.09.29"]
[Round "7.2"]
[White "Kirby, Peter J."]
[Black "Carpenter, Paul A"]
[Result "1/2-1/2"]
[ECO "A85"]
[WhiteElo "2011"]
[BlackElo "1986"]
[Annotator "TA"]
[PlyCount "69"]
[EventDate "2022.09.25"]
[EventType "tourn"]
[EventCountry "LIE"]
[SourceTitle "playchess.com"]
[Source "ChessBase"]
[SourceQuality "1"]
[TimeControl "40/5400+30:1800+30"]

{[%evp 10,69,27,31,41,0,70,72,65,68,60,56,96,60,92,73,75,56,57,62,64,54,48,55,85,84,119,65,116,47,47,57,66,38,37,35,24,29,50,-5,0,0,13,-37,-12,-10,-12,-13,-10,-18,-18,-28,-28,-20,-20,-69,-59,-66,-65,-72,-66,-71]} 1. d4 {[%emt 0:00:03]} e6 {[%emt 0:00:18]} 2. c4 {[%emt 0:00:28]} f5 {[%emt 0:00:08]} 3. Nc3 {[%emt 0:02:48]} Nf6 {[%emt 0:00:12]} 4. e3 {[%emt 0:00:39]} Be7 {[%emt 0:00:36]} 5. Bd3 {[%emt 0:00:26]} O-O {[%emt 0:00:10]} 6. Nge2 {[%emt 0:01:52]} d6 {[%emt 0:00:38] A85: Dutch Defence: 2 c4 Nf6 3 Nc3.} 7. e4 {[%emt 0:05:40] [#]} Nc6 $146 {[%emt 0:10:58]} (7... Nxe4 $11 8. Nxe4 fxe4 9. Bxe4 d5) ({Predecessor:} 7... fxe4 8. Nxe4 Nc6 9. O-O e5 10. d5 Nb4 11. Nxf6+ Bxf6 12. Be4 Na6 13. Qc2 g6 14. Be3 {0-1 (35) Sarkar,J (2328)-Carl,K Linthicum 2018}) 8. exf5 $14 {[%emt 0:04:03]} exf5 {[%emt 0:09:40] White is better.} 9. O-O {[%emt 0:01:08]} Qe8 {[%emt 0:04:31]} 10. Bc2 {[%emt 0:03:27]} Nb4 {[%emt 0:09:26]} 11. Bb1 {[%emt 0:00:50]} c6 {[%emt 0:07:32]} 12. a3 {[%emt 0:02:51]} Na6 {[%emt 0:00:04]} 13. Re1 {[%emt 0:02:48]} Qf7 {[%emt 0:19:35]} 14. Ng3 {[%emt 0:02:21]} g6 {[%emt 0:00:42]} 15. f3 {[%emt 0:10:07]} Re8 {[%emt 0:02:35]} 16. Ba2 {[%emt 0:04:08]} Kh8 {[%emt 0:03:16]} 17. Bf4 {[%emt 0:01:40]} h5 {[%emt 0:10:25]} 18. Bg5 {[%emt 0:03:09]} (18. Qd2 $16) 18... Ng8 {[%emt 0:02:33]} (18... Bd7 $14) 19. c5 {[%emt 0:04:14] White is much more active.} (19. h4 $16) 19... d5 {[%emt 0:00:32]} 20. Bxe7 {[%emt 0:01:03]} ({Reject} 20. Qe2 {[#]} Nxc5 $1 21. Bf4 (21. Qe5+ Kh7 $17) 21... Ne6 22. Be5+ Kh7 $17) 20... Rxe7 {[%emt 0:00:10]} 21. Rxe7 {[%emt 0:02:01]} Qxe7 {[%emt 0:00:09]} 22. Qd2 {[%emt 0:01:16] Against Qe3+} Bd7 {[%emt 0:01:20]} 23. Re1 {[%emt 0:01:25]} Qf6 {[%emt 0:02:38]} 24. Qf4 {[%emt 0:05:12]} (24. Bb1 $14) 24... Rc8 {[%emt 0:03:00]} 25. Qe5 {[%emt 0:06:03]} Kg7 {[%emt 0:02:29]} 26. f4 {[%emt 0:04:28]} ({Better is} 26. Qxf6+ $11 Nxf6 27. Re7+ Kf8 28. Re5) 26... Re8 {[%emt 0:01:31]} 27. Qxf6+ {[%emt 0:00:03]} Nxf6 {[%emt 0:01:35]} 28. Rxe8 {[%emt 0:00:12]} Bxe8 {[%emt 0:00:03]} 29. Bb1 {[%emt 0:03:20]} Ne4 {[%emt 0:03:04]} 30. Bxe4 {[%emt 0:00:20]} fxe4 {[%emt 0:00:24]} 31. Kf2 {[%emt 0:04:45]} Nc7 {[%emt 0:00:31]} 32. Ke3 {[%emt 0:01:01]} (32. Nf1 $11) 32... Kf6 {[%emt 0:01:24]} 33. Nce2 {[%emt 0:03:00]} Bd7 {[%emt 0:00:55]} 34. h3 {[%emt 0:00:49]} Ne8 {[%emt 0:01:19]} 35. Nf1 {[%emt 0:20:20] Weighted Error Value: White=0.18 (very precise) /Black=0.16 (very precise)} 1/2-1/2